bitfinex-derivatives/quotes_ETHF0:USTF0_20250115
["timestamp","ask_amount","ask_price","bid_price","bid_amount"]
[1736900926573,0.30942,3233.0,3232.7,40.8]
[1736900927271,4.5498,3233.1,3232.7,40.8]
[1736900927468,0.30945,3232.6,3232.5,0.002]
[1736900927873,3.80289162,3232.6,3232.5,0.002]
[1736900928067,3.80289162,3232.6,3232.5,40.802]
[1736900937479,6.2313771,3232.6,3232.5,40.802]
[1736900939182,4.86325,3232.7,3232.5,40.802]
[1736900940075,2.42848548,3232.6,3232.5,40.802]
[1736900940884,2.73793548,3232.6,3232.5,40.802]
[1736900941383,2.42848548,3232.6,3232.5,41.11146]
[1736900941584,3.2078,3232.7,3232.5,40.802]
[1736900941883,3.51725,3232.7,3232.5,40.802]
[1736900942084,0.30945,3232.7,3232.5,40.802]
[1736900942778,3.77448548,3232.9,3232.5,40.802]
[1736900943284,0.30945,3232.7,3232.5,40.802]
[1736900944079,0.30945,3232.6,3232.5,40.802]
[1736900944282,2.42848548,3232.9,3232.5,40.802]
[1736900944482,0.30945,3232.7,3232.5,40.802]
[1736900944684,0.30945,3232.6,3232.5,40.802]
[1736900945581,0.30945,3232.7,3232.5,40.802]
[1736900946671,0.30945,3232.6,3232.5,40.802]
[1736900947084,3.77185906,3232.6,3232.5,0.002]
[1736900947475,3.46240906,3232.6,3232.5,0.002]
[1736900947677,3.77448548,3232.8,3232.5,0.002]
[1736900947678,5.63628548,3233.1,3232.5,0.002]
[1736900947978,3.2078,3233.1,3232.5,0.4952]
[1736900948374,0.30945,3232.7,3232.5,0.4952]
[1736900948679,2.73792548,3232.8,3232.5,0.80466]
[1736900948986,0.30944,3232.7,3232.5,0.4952]
[1736900950791,0.30945,3232.6,3232.5,0.002]
[1736900951875,3.75279435,3232.7,3232.5,0.002]
[1736900952079,3.75279435,3232.7,3232.5,0.31146]
[1736900952481,3.75279435,3232.7,3232.5,0.002]
[1736900952681,0.30945,3232.6,3232.5,0.002]
[1736900954483,6.96060435,3232.7,3232.5,0.002]
[1736900955386,0.30945,3232.7,3232.5,0.002]
[1736900956490,0.30945,3232.6,3232.5,0.002]
[1736900961281,8.28170665,3232.7,3232.5,0.002]
[1736900961282,8.59115665,3232.7,3232.5,0.002]
[1736900961685,0.30945,3232.6,3232.5,0.002]
[1736900963792,8.77136351,3232.6,3232.5,0.002]
[1736900963992,0.30952,3231.9,3231.7,0.4806]
[1736900964192,0.30953,3231.8,3231.7,0.4806]
[1736900964392,0.30953,3231.8,3231.7,41.2806]
[1736900966997,3.57697861,3231.8,3231.7,41.2806]
[1736900967392,3.26744861,3231.8,3231.0,3.2078]
[1736900967695,7.30002457,3231.9,3231.8,0.30953]
[1736900967896,6.54902457,3231.9,3231.8,41.10953]
[1736900968091,6.54902457,3231.9,3231.8,42.06613]
[1736900969094,4.86273396,3232.0,3231.8,41.7566]
[1736900969301,4.86273396,3232.0,3231.8,42.06612]
[1736900969492,4.86273396,3232.0,3231.9,0.30952]
[1736900970204,4.86273396,3232.0,3231.9,41.10952]
[1736900971096,4.86273396,3232.0,3231.9,41.60332]
[1736900971296,2.60973396,3232.0,3231.9,41.60332]
[1736900972196,6.07841745,3232.4,3231.9,41.2938]
[1736900972401,6.07841745,3232.4,3232.3,3.51728]
[1736900972702,6.07841745,3232.4,3231.9,44.5016]
[1736900972897,6.07841745,3232.4,3232.1,0.30949]
[1736900973094,0.30948,3232.3,3232.1,0.30949]
[1736900973497,6.38789745,3232.4,3232.2,0.30949]
[1736900974401,6.07841745,3232.4,3232.3,0.30948]
[1736900974703,0.30947,3232.5,3232.3,0.30948]
[1736900975799,2.42848548,3232.6,3231.9,44.5016]
[1736900976004,0.30948,3232.4,3232.0,0.30951]
[1736900976302,0.30948,3232.4,3232.1,0.3095]
[1736900976802,6.08108065,3232.3,3232.1,0.3095]
[1736900977405,6.08108065,3232.3,3232.2,0.30949]
[1736900977902,0.30947,3232.4,3232.2,0.30949]
[1736900978699,6.08095938,3232.3,3232.2,0.30949]
[1736900978902,6.08095938,3232.3,3232.1,0.3095]
[1736900979598,6.08095938,3232.2,3232.1,0.3095]
[1736900980798,6.08095938,3232.3,3232.1,0.3095]
[1736900981202,6.08095938,3232.3,3232.2,0.30949]
[1736900981902,6.39043938,3232.4,3232.2,0.30949]
[1736900982399,6.08095938,3232.4,3231.9,44.5016]
[1736900982600,6.08095938,3232.4,3232.3,3.2078]
[1736900982793,8.43118832,3232.9,3232.3,3.51728]
[1736900982999,8.43118832,3232.9,3232.8,0.30943]
[1736900983507,8.43118832,3232.9,3232.8,0.4559]
[1736900983707,8.74060832,3232.9,3232.8,0.76533]
[1736900983904,8.74060832,3232.9,3232.8,0.4559]
[1736900984114,0.30942,3232.9,3232.8,0.4559]
[1736900984302,0.30942,3232.9,3232.8,41.2559]
[1736900985606,6.38769253,3233.0,3232.8,41.2559]
[1736900987607,6.38769253,3233.0,3232.8,40.8]
[1736900987906,6.38769253,3233.0,3232.7,3.2078]
[1736900987907,0.30942,3232.9,3232.7,3.2078]
[1736900988611,0.30942,3232.9,3232.7,44.0078]
[1736900989307,6.07827253,3233.0,3232.7,44.0078]
[1736900989514,0.4535,3233.2,3232.7,44.0078]
[1736900989709,0.7629,3233.2,3232.9,0.30942]
[1736900990108,0.4535,3233.2,3232.7,44.0078]
[1736900990411,0.3094,3233.1,3232.8,0.30943]
[1736900991314,0.3094,3233.1,3232.7,44.0078]
[1736900991803,0.3094,3233.1,3232.8,0.30943]
[1736900992607,6.52879362,3233.2,3232.7,44.0078]
[1736900992809,0.30941,3233.1,3232.8,0.30943]
[1736900993606,6.52879362,3233.2,3232.7,44.0078]
[1736900993916,0.30941,3233.1,3232.8,0.30943]
[1736900994213,6.52879362,3233.2,3232.7,44.0078]
[1736900994403,6.07529362,3233.2,3233.1,0.3094]
[1736900994604,0.30943,3232.8,3232.7,40.8]
[1736900994803,0.30943,3232.8,3232.4,0.4972]
[1736900994804,0.77352,3233.1,3232.4,0.4972]
[1736900995005,2.42848548,3233.1,3232.4,0.4972]
[1736900995210,0.30945,3232.6,3232.4,0.80667]
[1736900995409,0.30945,3232.6,3232.5,40.8]
[1736900996902,0.30945,3232.7,3232.5,40.8]
[1736900997115,0.30943,3232.9,3232.8,0.30943]
[1736900997305,0.30943,3232.9,3232.7,3.51724]
[1736900997507,6.07529362,3233.1,3232.7,3.2078]
[1736900997706,3.82109362,3233.1,3233.0,2.73789548]
[1736900997911,7.29392704,3233.5,3233.0,2.73789548]
[1736900998111,8.3497109,3233.7,3233.4,5.63628548]
[1736900998313,8.3497109,3233.7,3233.6,0.30936]
[1736900998810,0.9796,3234.3,3233.4,5.63628548]
[1736900999016,0.9796,3234.3,3233.9,3.2078]
[1736900999314,0.30931,3234.2,3234.0,0.30932]
[1736900999709,0.9796,3234.3,3233.9,3.2078]
[1736900999915,1.28889,3234.3,3234.1,0.3093]
[1736901000307,1.28889,3234.3,3233.9,3.2078]
[1736901000519,1.28889,3234.3,3234.0,0.30931]
[1736901000712,1.28889,3234.3,3233.9,3.2078]
[1736901000908,0.9796,3234.3,3234.0,0.30931]
[1736901001105,0.3093,3234.2,3233.9,3.2078]
[1736901001418,1.28889,3234.3,3234.0,0.30932]
[1736901001914,1.28889,3234.3,3233.9,3.2078]
[1736901002317,0.9796,3234.3,3234.1,0.30931]
[1736901002516,0.9796,3234.3,3233.6,44.0078]
[1736901002711,5.63628548,3234.1,3233.6,3.2078]
[1736901002923,3.38395406,3234.2,3232.9,10.49804872]
[1736901002924,3.2078,3233.7,3232.9,10.49804872]
[1736901003113,0.30938,3233.4,3233.1,0.3094]
[1736901003415,0.30937,3233.5,3233.1,0.3094]
[1736901003616,0.30939,3233.3,3232.9,3.2078]
[1736901003817,4.78915406,3233.6,3232.9,3.2078]
[1736901004013,4.78915406,3233.6,3233.0,40.8]
[1736901004219,0.3094,3233.1,3233.0,40.8]
[1736901005421,2.42848548,3233.2,3232.5,0.30946]
[1736901005620,0.30942,3232.9,3232.5,0.30946]
[1736901005817,2.42848548,3232.6,3232.4,3.2078]
[1736901006022,2.42848548,3232.6,3232.5,40.8]
[1736901006226,0.9859,3232.8,3232.5,40.8]
[1736901006419,1.29534,3232.8,3232.5,40.8]
[1736901006617,3.41567022,3232.7,3232.5,40.8]
[1736901007719,3.41567022,3232.7,3232.4,3.2078]
[1736901008223,2.73794548,3232.5,3232.4,3.2078]
[1736901008622,6.02275233,3232.5,3232.4,3.2078]
[1736901008824,6.02275233,3232.5,3232.4,44.0078]
[1736901009116,6.02275233,3232.5,3232.4,3.2078]
[1736901009318,5.71329233,3232.5,3231.8,3.2078]
[1736901009519,2.42848548,3232.2,3231.9,40.8]
[1736901009720,0.30951,3232.0,3231.9,40.8]
[1736901010122,0.76661,3232.0,3231.9,40.8]
[1736901010526,4.01514894,3232.0,3231.9,40.8]
[1736901010727,3.70563894,3232.0,3231.9,40.8]
[1736901011028,3.70563894,3232.0,3231.8,3.2078]
[1736901011526,3.70563894,3232.0,3231.8,44.0078]
[1736901013125,4.01514894,3232.0,3231.8,44.0078]
[1736901013627,3.70563894,3232.0,3231.8,44.0078]
[1736901014233,4.01514894,3232.0,3231.8,44.0078]
[1736901014423,0.30952,3231.9,3231.8,44.0078]
[1736901014727,4.01514894,3232.0,3231.8,44.0078]
[1736901015120,3.70563894,3232.0,3231.8,44.0078]
[1736901015523,4.01514894,3232.0,3231.8,44.0078]
[1736901015718,0.30952,3231.9,3231.8,44.0078]
[1736901016124,3.84462554,3231.9,3231.8,44.0078]
[1736901016318,6.27311102,3231.9,3231.8,3.2078]
[1736901016723,3.53510554,3231.9,3231.2,3.2078]
[1736901017030,3.53510554,3231.9,3231.6,0.30954]
[1736901017236,3.53510554,3231.9,3231.4,0.30956]
[1736901017531,3.84462554,3231.9,3231.3,41.10957]
[1736901017930,3.84462554,3231.9,3231.3,40.8]
[1736901018128,3.84462554,3231.9,3231.4,0.30956]
[1736901018829,0.30953,3231.8,3231.4,0.30956]
[1736901019030,3.84462554,3231.9,3231.5,0.30955]
[1736901020330,2.05670554,3231.9,3231.8,3.2078]
[1736901020529,8.4824026,3233.1,3231.8,8.06477096]
[1736901020722,8.4824026,3233.1,3233.0,0.30941]
[1736901021025,8.4824026,3233.2,3233.1,0.3094]
[1736901021825,7.7842126,3233.2,3233.1,0.3094]
[1736901022026,4.05906705,3234.8,3233.1,5.0]
[1736901022027,0.4825,3234.6,3233.1,5.0]
[1736901022326,0.4825,3234.6,3234.1,0.3093]
[1736901022327,3.30225626,3234.3,3234.1,0.3093]
[1736901022629,0.9699,3234.6,3234.2,0.3093]
[1736901022833,3.54430104,3234.5,3234.2,0.3093]
[1736901023033,3.2078,3234.7,3234.3,3.2078]
[1736901023334,9.6356438,3235.5,3234.3,3.2078]
[1736901023335,0.4517,3235.0,3234.3,3.2078]
[1736901023533,0.4517,3235.0,3234.0,2.93803068]
[1736901023534,0.4517,3235.0,3234.9,0.30923]
[1736901023838,3.54457582,3235.4,3234.8,2.93803068]
[1736901024128,3.54457582,3235.6,3235.2,0.3092]
[1736901024324,3.54457582,3235.6,3234.9,40.8]
[1736901024325,3.54457582,3235.6,3235.1,3.2078]
[1736901024530,0.4517,3235.8,3235.5,0.30917]
[1736901024730,0.4517,3235.8,3235.6,0.30916]
[1736901024926,3.46244403,3235.7,3235.5,3.2078]
[1736901025125,0.4944,3236.2,3235.5,3.2078]
[1736901025328,0.4944,3236.2,3235.8,0.30914]
[1736901025537,3.46244403,3236.1,3235.5,3.2078]
[1736901025727,3.46244403,3236.1,3235.6,0.30916]
[1736901026027,3.46244403,3236.1,3235.5,3.51697]
[1736901026234,6.67024403,3236.1,3235.5,3.2078]
[1736901026626,6.67024403,3236.1,3235.5,3.51697]
[1736901026826,6.67024403,3236.1,3235.6,0.30916]
[1736901027022,6.67024403,3236.1,3235.5,3.2078]
[1736901027228,6.67024403,3236.1,3234.7,0.30925]
[1736901027229,0.30918,3235.5,3234.7,0.30925]
[1736901027433,0.4658,3235.4,3234.7,0.30925]
[1736901027632,0.4658,3235.4,3234.8,0.30924]
[1736901028730,3.3368763,3235.3,3234.8,0.30923]
[1736901029236,3.3368763,3235.3,3234.5,44.0078]
[1736901029434,3.3368763,3235.3,3234.7,0.30925]
[1736901031034,3.6460763,3235.3,3234.5,44.0078]
[1736901031337,3.6460763,3235.3,3234.6,0.30926]
[1736901031933,3.3368763,3235.3,3234.5,44.0078]
[1736901032236,3.3368763,3235.3,3234.8,0.30924]
[1736901032433,0.4658,3235.4,3234.8,2.93803068]
[1736901032634,0.4658,3235.4,3235.1,0.30921]
[1736901032838,0.4658,3235.4,3235.0,0.30922]
[1736901033344,0.4658,3235.4,3234.9,3.51703]
[1736901033837,0.4658,3235.4,3234.9,3.2078]
[1736901034137,0.4658,3235.4,3234.9,3.51703]
[1736901035937,3.48694406,3235.3,3234.5,44.0078]
[1736901036136,3.97284406,3235.3,3234.5,44.0078]
[1736901036742,0.30923,3235.0,3234.5,44.0078]
[1736901037937,3.2078,3235.1,3234.5,44.0078]
[1736901038129,0.30926,3234.7,3234.5,40.8]
[1736901038334,1.345,3235.0,3234.5,41.10927]
[1736901038335,4.95273527,3235.0,3234.5,41.10927]
[1736901038542,0.30923,3234.9,3234.5,41.10927]
[1736901038742,1.345,3235.0,3234.5,40.8]
[1736901039246,0.4658,3235.4,3235.1,0.30921]
[1736901039932,0.4658,3235.4,3235.2,40.8]
[1736901043836,0.4658,3235.4,3235.3,0.30919]
[1736901044043,3.6809,3236.1,3235.3,3.2078]
[1736901044344,0.4731,3236.1,3236.0,0.30913]
[1736901044545,0.4731,3236.1,3235.9,0.30913]
[1736901044738,0.4731,3236.1,3236.0,0.30913]
[1736901045647,0.4688,3236.4,3235.8,2.42255499]
[1736901046140,0.4688,3236.4,3235.6,0.77291]
[1736901046141,0.4688,3236.4,3236.1,5.63035499]
[1736901046336,3.6999,3236.9,3236.2,0.30911]
[1736901046644,3.27690121,3236.8,3236.4,0.30909]
[1736901046940,3.27690121,3236.8,3236.5,0.30908]
[1736901047137,4.1687,3236.9,3236.4,2.42255499]
[1736901047642,4.47775,3236.9,3236.5,0.30907]
[1736901048139,4.1687,3236.9,3236.7,0.30905]
[1736901048337,4.1687,3236.9,3236.6,0.30907]
[1736901048533,4.1687,3236.9,3236.7,0.30905]
[1736901048736,4.1687,3236.9,3236.5,3.2078]
[1736901048737,0.30906,3236.7,3236.5,3.2078]
[1736901049444,0.30906,3236.7,3236.3,41.10909]
[1736901050144,0.30908,3236.5,3236.3,40.8]
[1736901050339,0.30908,3236.5,3236.1,3.51691]
[1736901050545,4.1687,3236.9,3236.1,3.2078]
[1736901050738,0.3091,3236.3,3236.1,3.2078]
[1736901050945,3.52974258,3236.8,3236.1,3.51691]
[1736901051134,0.30908,3236.6,3236.1,3.51691]
[1736901051334,3.52974258,3236.8,3236.1,3.51691]
[1736901051644,0.30908,3236.5,3236.1,3.51691]
[1736901051845,3.52974258,3236.8,3236.1,3.2078]
[1736901052442,3.83880258,3236.8,3236.1,3.2078]
[1736901052744,5.80575,3236.9,3236.5,0.30907]
[1736901052940,5.4967,3236.9,3236.1,3.2078]
[1736901053344,0.30907,3236.7,3236.3,0.30909]
[1736901054146,4.1687,3236.9,3236.1,3.2078]
[1736901054443,0.9609,3236.9,3236.8,0.30905]
[1736901054637,0.9609,3236.9,3236.6,3.2078]
[1736901055141,0.9609,3236.9,3236.8,0.30905]
[1736901055943,0.4688,3236.9,3236.8,0.30905]
[1736901056345,3.2078,3237.3,3236.9,0.30903]
[1736901056546,0.30901,3237.2,3236.8,41.10904]
[1736901057145,3.6953,3237.3,3236.8,40.8]
[1736901057348,0.30901,3237.2,3236.9,0.30904]
[1736901057744,3.6953,3237.3,3236.8,40.8]
[1736901058046,0.002,3237.5,3237.0,3.2078]
[1736901058250,0.002,3237.5,3237.4,3.51679]
[1736901058847,0.002,3237.5,3237.4,0.30899]
[1736901059546,0.002,3237.5,3237.4,3.51679]
[1736901060647,0.002,3237.5,3237.4,8.51679]
[1736901060954,0.4898,3239.2,3237.8,0.77238]
[1736901061144,0.30885,3238.9,3238.5,0.30888]
[1736901061454,4.79546633,3239.2,3238.4,2.93484929]
[1736901061651,1.447,3239.2,3238.4,2.93484929]
[1736901061949,0.30884,3239.1,3238.4,2.93484929]
[1736901062145,0.30885,3238.9,3238.5,0.30888]
[1736901062350,1.447,3239.2,3238.4,2.93484929]
[1736901062556,1.447,3239.2,3238.3,3.2078]
[1736901063255,0.30885,3238.9,3238.4,0.30889]
[1736901063552,0.30887,3238.8,3238.3,3.5167]
[1736901063755,0.30887,3238.8,3238.4,0.3089]
[1736901063951,0.30888,3238.6,3238.3,3.2078]
[1736901064146,3.2078,3238.9,3238.3,3.2078]
[1736901064147,0.30889,3238.5,3238.3,3.2078]
[1736901064453,6.43896251,3238.5,3237.5,3.2078]
[1736901064648,6.43896251,3238.5,3237.8,0.30895]
[1736901064649,0.30891,3238.3,3237.8,0.30895]
[1736901064848,0.039441,3238.4,3238.0,2.93484929]
[1736901065055,1.328,3238.8,3238.3,0.3089]
[1736901065247,0.30887,3238.7,3238.0,2.93484929]
[1736901065549,3.2078,3238.5,3237.9,3.2078]
[1736901066053,0.30891,3238.3,3237.9,3.51674]
[1736901066254,3.2078,3238.5,3237.9,3.2078]
[1736901066451,0.495,3238.4,3237.9,3.2078]
[1736901066650,0.30893,3238.1,3237.9,3.2078]
[1736901067053,0.30893,3238.2,3237.9,3.2078]
[1736901067258,0.30894,3238.0,3237.4,3.6211]
[1736901067552,0.495,3238.4,3238.1,0.30892]
[1736901067854,0.30892,3238.2,3237.8,3.51675]
[1736901068058,0.30892,3238.2,3237.9,0.30894]
[1736901068746,0.30894,3237.9,3237.8,3.2078]
[1736901069149,0.4568,3238.3,3237.4,0.4133]
[1736901069448,0.30897,3237.7,3237.4,0.72229]
[1736901070059,0.30898,3237.6,3237.4,0.72229]
[1736901070263,0.4568,3238.3,3237.4,0.72229]
[1736901070451,0.30892,3238.2,3237.5,0.30898]
[1736901070751,0.30896,3237.8,3237.6,0.30897]
[1736901070955,0.30898,3237.6,3237.4,0.30899]
[1736901071151,4.07221538,3238.3,3237.3,3.5168]
[1736901071461,0.309,3237.3,3237.2,40.8]
[1736901072951,6.94216194,3237.3,3237.2,40.8]
[1736901073161,6.63316194,3237.3,3236.0,6.14264929]
[1736901073347,3.2078,3236.9,3236.0,6.14264929]
[1736901073551,0.30907,3236.7,3236.0,6.14264929]
[1736901073856,0.30906,3236.7,3236.4,3.2078]
[1736901074049,0.9526,3236.8,3236.5,40.8]
[1736901074253,0.4897,3236.8,3236.7,0.30906]
[1736901074453,0.4601,3237.3,3236.4,6.14264929]
[1736901074957,3.2078,3237.1,3236.7,40.8]
[1736901075154,0.30905,3236.8,3236.7,40.8]
[1736901079251,0.30904,3236.9,3236.7,40.8]
[1736901079458,0.30903,3237.0,3236.7,40.8]
[1736901080064,0.30905,3236.8,3236.7,40.8]
[1736901080361,0.30905,3236.9,3236.7,40.8]
[1736901080562,0.30905,3236.8,3236.7,40.8]
[1736901081261,0.30904,3236.9,3236.7,40.8]
[1736901081567,3.2078,3237.1,3236.7,40.8]
[1736901081862,0.30905,3236.9,3236.7,40.8]
[1736901082566,0.30905,3236.8,3236.7,40.8]
[1736901082967,3.2078,3237.1,3236.7,40.8]
[1736901083165,0.30905,3236.9,3236.7,40.8]
[1736901083366,3.2078,3237.1,3236.7,40.8]
[1736901083566,0.30905,3236.9,3236.7,40.8]
[1736901083966,3.2078,3237.1,3236.8,0.30905]
[1736901084267,0.30902,3237.1,3236.8,0.30905]
[1736901085057,0.4601,3237.3,3236.7,40.8]
[1736901085260,0.4601,3237.3,3236.8,3.2078]
[1736901085566,0.30904,3237.0,3236.8,3.2078]
[1736901086465,0.30903,3237.1,3236.8,3.2078]
[1736901086669,0.4601,3237.3,3237.0,0.30903]
[1736901086871,0.30902,3237.2,3236.9,2.42138824]
[1736901087670,0.30902,3237.2,3236.9,2.73042824]
[1736901088570,0.76911,3237.3,3237.0,0.30903]
[1736901089170,0.30901,3237.2,3236.9,2.73042824]
[1736901089571,0.4974,3237.4,3237.2,0.30901]
[1736901089773,0.30901,3237.3,3237.0,0.30903]
[1736901089972,0.4974,3237.4,3236.9,2.42138824]
[1736901090173,0.8064,3237.4,3237.1,0.30902]
[1736901090567,0.4974,3237.4,3236.8,3.2078]
[1736901090875,3.50107909,3237.3,3236.8,3.2078]
[1736901091071,0.30905,3236.8,3236.7,40.8]
[1736901091272,0.30908,3236.5,3236.4,3.2078]
[1736901093473,3.24588051,3236.5,3235.6,3.2078]
[1736901093777,2.42138824,3236.3,3235.6,3.2078]
[1736901093976,4.1517,3236.4,3235.7,43.22138824]
[1736901094169,4.1517,3236.4,3236.2,0.3091]
[1736901094373,4.1517,3236.4,3236.0,5.62918824]
[1736901094374,3.6779,3236.4,3236.0,5.62918824]
[1736901094670,3.2078,3236.4,3236.3,0.3091]
[1736901094874,3.2078,3236.4,3236.0,5.62918824]
[1736901095075,3.2078,3236.4,3236.2,0.3091]
[1736901095269,0.30908,3236.5,3236.2,0.3091]
[1736901095472,0.4701,3236.7,3236.0,5.62918824]
[1736901095674,0.30908,3236.5,3236.0,5.62918824]
[1736901095974,0.30909,3236.4,3236.2,0.3091]
[1736901096478,0.3091,3236.4,3236.0,5.62918824]
[1736901096667,0.4701,3236.7,3236.0,5.62918824]
[1736901096874,0.3091,3236.3,3236.1,0.30911]
[1736901098573,0.30912,3236.1,3236.0,3.2078]
[1736901099971,0.30912,3236.1,3235.7,41.10915]
[1736901100172,0.30914,3235.9,3235.7,41.10915]
[1736901100467,0.30911,3236.2,3235.7,40.8]
[1736901100671,0.4763,3236.3,3235.7,43.22138824]
[1736901100880,0.30911,3236.2,3235.9,0.30913]
[1736901101279,0.4763,3236.3,3235.7,43.22138824]
[1736901101476,3.2078,3236.4,3236.0,2.42138824]
[1736901101776,0.30896,3237.7,3237.2,0.30901]
[1736901101981,0.4955,3237.4,3237.3,0.309]
[1736901102176,3.71320705,3237.7,3237.3,40.8]
[1736901102478,0.11362495,3267.5,3237.3,40.8]
[1736901102479,0.4955,3238.0,3237.5,2.42138824]
[1736901102669,0.4955,3238.0,3237.8,5.62918824]
[1736901102875,0.4955,3238.0,3237.9,0.30894]
[1736901103180,3.51669,3238.5,3238.1,0.30892]
[1736901103474,3.2078,3238.5,3237.9,2.93121944]
[1736901103678,3.7033,3238.9,3238.2,40.8]
[1736901103981,0.30889,3238.5,3238.2,40.8]
[1736901104473,0.3089,3238.4,3238.2,40.8]
[1736901104677,0.30888,3238.6,3238.2,40.8]
[1736901104877,3.64829766,3238.6,3238.2,40.8]
[1736901105074,0.3089,3238.4,3238.2,40.8]
[1736901105468,0.30891,3238.3,3238.2,40.8]
[1736901105673,0.30891,3238.3,3237.8,3.2078]
[1736901105674,3.38939572,3238.3,3237.8,3.2078]
[1736901105871,3.2078,3238.5,3237.8,3.2078]
[1736901106069,0.30893,3238.1,3237.8,3.2078]
[1736901106275,0.30895,3237.9,3237.4,0.30899]
[1736901106877,0.30896,3237.8,3237.4,41.10899]
[1736901107079,3.82954345,3238.0,3237.4,40.8]
[1736901107271,0.30896,3237.7,3237.3,3.2078]
[1736901107473,0.30897,3237.7,3237.3,3.5168]
[1736901107679,0.30898,3237.6,3237.3,3.2078]
[1736901107881,0.30899,3237.5,3237.3,3.2078]
[1736901108077,0.30898,3237.6,3237.3,3.2078]
[1736901108280,0.30898,3237.6,3237.2,41.10901]
[1736901108483,0.30898,3237.6,3237.2,40.8]
[1736901108678,3.82954345,3238.0,3237.2,40.8]
[1736901109079,3.82954345,3238.0,3237.2,41.10901]
[1736901109286,0.30898,3237.6,3237.2,41.10901]
[1736901109587,0.30899,3237.5,3237.2,40.8]
[1736901109884,0.30898,3237.6,3237.2,40.8]
[1736901110188,0.30898,3237.6,3237.2,41.10901]
[1736901110381,0.30898,3237.6,3237.3,0.309]
[1736901110977,0.30898,3237.6,3237.2,40.8]
[1736901111183,0.30898,3237.6,3237.2,41.10901]
[1736901111378,0.30898,3237.5,3237.2,41.10901]
[1736901112285,3.82954345,3238.0,3237.2,40.8]
[1736901112489,0.30898,3237.6,3237.3,0.309]
[1736901112685,0.30898,3237.6,3237.2,40.8]
[1736901112894,0.30899,3237.5,3237.2,41.10901]
[1736901113084,0.30899,3237.5,3237.3,0.309]
[1736901114094,3.82954345,3238.0,3237.2,46.93901944]
[1736901114284,0.30895,3237.9,3237.7,0.30896]
[1736901114484,3.82954345,3238.0,3237.7,0.30896]
[1736901114785,3.82954345,3238.0,3237.8,0.30895]
[1736901114984,3.82954345,3238.0,3237.9,0.30895]
[1736901114985,0.4738,3238.0,3237.9,0.30895]
[1736901115196,0.5,3238.4,3237.6,6.13901944]
[1736901115387,0.8089,3238.4,3238.1,0.30892]
[1736901116092,0.8089,3238.4,3238.2,40.8]
[1736901116595,0.5,3238.4,3238.2,40.8]
[1736901116796,0.8089,3238.4,3238.2,40.8]
[1736901117689,0.5,3238.4,3238.2,41.10891]
[1736901118895,0.8089,3238.4,3238.2,40.8]
[1736901119392,0.5,3238.4,3238.2,40.8]
[1736901119593,0.5,3238.4,3238.2,41.10891]
[1736901120694,0.8089,3238.4,3238.2,40.8]
[1736901121095,0.5,3238.4,3238.2,40.8]
[1736901121392,0.4937,3238.6,3238.5,0.30889]
[1736901122794,0.4937,3238.6,3238.2,40.8]
[1736901122999,3.2078,3238.3,3237.6,3.2078]
[1736901123389,0.30896,3237.7,3237.6,3.2078]
[1736901123587,0.30899,3237.5,3237.3,4.792714]
[1736901123797,0.30899,3237.4,3237.3,4.792714]
[1736901124195,0.309,3237.3,3237.2,40.8]
[1736901124587,3.78528649,3237.3,3237.2,40.8]
[1736901124792,6.68408649,3237.3,3236.5,3.2078]
[1736901124992,0.30907,3236.6,3236.1,5.62828802]
[1736901125195,0.30909,3236.4,3236.1,3.51691]
[1736901125390,7.17542928,3236.5,3235.5,2.42048802]
[1736901125594,0.30911,3236.2,3235.5,0.30917]
[1736901125795,0.30913,3236.0,3235.6,41.10916]
[1736901125995,0.4882,3236.4,3235.6,41.10916]
[1736901125996,0.4882,3236.4,3235.6,40.8]
[1736901126205,0.30914,3235.9,3235.6,40.8]
[1736901126403,3.27710069,3236.3,3235.6,40.8]
[1736901126404,0.30915,3235.8,3235.6,40.8]
[1736901128297,3.2078,3236.1,3235.6,40.8]
[1736901128603,0.30916,3235.7,3235.6,40.8]
[1736901129803,3.85612111,3236.0,3235.6,40.8]
[1736901130009,0.30915,3235.8,3235.6,40.8]
[1736901130397,3.85612111,3236.0,3235.6,40.8]
[1736901130703,0.30916,3235.7,3235.6,40.8]
[1736901131097,0.30915,3235.8,3235.6,40.8]
[1736901131299,3.85612111,3236.0,3235.6,40.8]
[1736901131500,0.30914,3235.9,3235.6,41.10916]
[1736901132203,3.2078,3236.1,3235.9,0.30913]
[1736901132398,3.2078,3236.1,3235.4,3.2078]
[1736901132600,3.2078,3236.1,3235.5,0.30917]
[1736901132795,3.2078,3236.1,3235.4,3.2078]
[1736901133103,3.51692,3236.1,3236.0,40.8]
[1736901134516,0.9771,3236.4,3236.0,40.8]
[1736901134517,0.4889,3236.4,3236.0,40.8]
[1736901134800,0.3091,3236.4,3236.0,40.8]
[1736901135000,3.6885,3236.5,3236.0,40.8]
[1736901135301,0.3091,3236.3,3236.0,40.8]
[1736901135504,3.41808292,3236.4,3236.0,41.10912]
[1736901136008,3.99759,3236.5,3236.0,41.10912]
[1736901136200,0.30909,3236.4,3236.0,41.10912]
[1736901136906,3.6885,3236.5,3236.2,0.3091]
[1736901137105,3.99758,3236.5,3236.1,0.30911]
[1736901137305,0.30912,3236.1,3236.0,40.8]
[1736901137801,3.6885,3236.5,3236.0,40.8]
[1736901137998,0.30909,3236.4,3236.0,41.10912]
[1736901138206,3.5008766,3236.4,3236.0,40.8]
[1736901138503,3.6885,3236.5,3236.2,0.3091]